bitfinex-derivatives/quotes_SOLF0:USTF0_20260105
["timestamp","ask_amount","ask_price","bid_price","bid_amount"]
[1767623505442,104.6653,133.84,133.7,0.31620353]
[1767623505643,192.9557,133.85,133.73,7.04980353]
[1767623505843,6.7292,133.82,133.73,7.04980353]
[1767623506552,104.703,133.79,133.66,0.31620353]
[1767623507049,193.003,133.79,133.66,0.31620353]
[1767623507450,104.7166,133.77,133.66,0.31620353]
[1767623507842,88.3,133.76,133.66,0.31620353]
[1767623508245,104.7311,133.75,133.65,88.34]
[1767623508443,104.7392,133.74,133.63,0.31620353]
[1767623508750,193.0259,133.76,133.63,0.31620353]
[1767623509249,104.7259,133.76,133.63,0.31620353]
[1767623509449,193.0459,133.76,133.63,0.31620353]
[1767623509645,104.7259,133.76,133.64,0.31620353]
[1767623509949,88.32,133.76,133.64,0.31620353]
[1767623510748,6.7337,133.73,133.65,6.7376]
[1767623511347,6.7337,133.73,133.65,7.05380353]
[1767623511545,6.7348,133.71,133.62,88.65620353]
[1767623512258,104.7417,133.74,133.63,0.31620353]
[1767623512259,104.7616,133.72,133.63,0.31620353]
[1767623512443,104.7616,133.72,133.56,112.50908519]
[1767623512444,104.778,133.69,133.6,0.31620353]
[1767623512642,104.7855,133.68,133.57,88.67620353]
[1767623512841,6.7378,133.65,133.57,88.67620353]
[1767623513744,6.737,133.67,133.57,88.67620353]
[1767623513942,6.737,133.67,133.58,0.33271655]
[1767623514446,6.736,133.69,133.58,7.07371655]
[1767623514648,6.736,133.69,133.59,0.33271655]
[1767623515050,6.736,133.69,133.59,7.07311655]
[1767623515344,104.7509,133.73,133.59,0.33271655]
[1767623515650,109.43960001,133.74,133.61,0.33271655]
[1767623515651,197.77960001,133.74,133.61,0.33271655]
[1767623515847,109.43960001,133.74,133.62,88.38]
[1767623516055,95.0733,133.74,133.63,7.07121655]
[1767623516252,6.7333,133.74,133.63,7.07121655]
[1767623516645,109.41820001,133.77,133.64,7.07061655]
[1767623516846,104.7314,133.75,133.64,0.33271655]
[1767623517052,193.0664,133.76,133.64,0.33271655]
[1767623517248,104.7493,133.73,133.61,0.33271655]
[1767623517451,104.7542,133.72,133.59,0.33271655]
[1767623517650,193.1142,133.72,133.59,0.33271655]
[1767623517846,6.7353,133.7,133.59,7.07321655]
[1767623519562,6.7353,133.7,133.6,6.7399]
[1767623519754,6.7353,133.7,133.6,7.07261655]
[1767623520657,6.7358,133.69,133.6,0.33271655]
[1767623520861,104.7542,133.72,133.6,0.33271655]
[1767623521050,109.41730001,133.77,133.63,0.33202757]
[1767623521250,193.0843,133.76,133.64,0.33202757]
[1767623521450,193.0843,133.76,133.63,88.4]
[1767623521451,104.7548,133.72,133.63,88.4]
[1767623521656,6.7359,133.69,133.59,7.07252757]
[1767623521855,6.7359,133.69,133.61,88.4]
[1767623522062,104.7489,133.73,133.61,88.4]
[1767623522363,104.7489,133.73,133.62,0.33202757]
[1767623522659,6.7349,133.71,133.62,0.33202757]
[1767623522863,104.7091,133.78,133.63,0.33202757]
[1767623523260,6.733,133.75,133.64,0.33202757]
[1767623523757,6.732,133.77,133.67,7.06852757]
[1767623523959,104.6726,133.83,133.69,0.33202757]
[1767623524151,104.664,133.84,133.71,0.33202757]
[1767623524347,6.73,133.81,133.71,0.33202757]
[1767623524564,104.6935,133.8,133.69,88.4]
[1767623525356,6.7313,133.78,133.69,88.73202757]
[1767623525659,104.6395,133.87,133.73,0.33202757]
[1767623525861,104.6395,133.87,133.74,0.33202757]
[1767623526063,104.6395,133.87,133.75,88.4]
[1767623526265,6.7283,133.84,133.75,88.4]
[1767623526467,104.6395,133.87,133.75,88.73202757]
[1767623526954,104.6723,133.83,133.72,0.33202757]
[1767623527254,104.6572,133.85,133.73,88.71202757]
[1767623527449,6.7288,133.83,133.73,88.71202757]
[1767623527650,104.6607,133.84,133.73,88.71202757]
[1767623527861,104.6607,133.84,133.69,104.7716]
[1767623527862,104.6918,133.8,133.69,0.33202757]
[1767623528161,104.7073,133.78,133.69,88.38]
[1767623528360,104.7073,133.78,133.65,0.33202757]
[1767623528361,104.7073,133.78,133.66,0.33202757]
[1767623528560,104.7012,133.79,133.66,0.33202757]
[1767623528761,104.7089,133.78,133.66,0.33202757]
[1767623528963,6.7333,133.74,133.66,0.33202757]
[1767623529666,6.7325,133.76,133.66,0.33202757]
[1767623529864,104.6766,133.82,133.68,0.33202757]
[1767623530158,104.6927,133.8,133.68,0.33202757]
[1767623530365,104.6927,133.8,133.69,88.71202757]
[1767623530665,6.7318,133.77,133.69,88.71202757]
[1767623530967,104.7149,133.77,133.68,88.38]
[1767623531268,104.7149,133.77,133.65,0.33202757]
[1767623531269,6.7334,133.74,133.66,88.38]
[1767623531969,6.7338,133.73,133.66,88.38]
[1767623532366,104.7149,133.77,133.66,88.38]
[1767623532566,193.0549,133.77,133.66,88.38]
[1767623532764,104.7281,133.76,133.66,88.38]
[1767623532966,104.7634,133.71,133.57,4.69750001]
[1767623533158,6.7363,133.68,133.58,88.71202757]
[1767623533364,6.7363,133.68,133.59,0.33202757]
[1767623533577,6.7363,133.68,133.59,88.71202757]
[1767623534171,104.7468,133.73,133.6,0.33202757]
[1767623534475,6.7348,133.71,133.62,0.33202757]
[1767623535067,118.1835,133.77,133.64,0.33202757]
[1767623535068,104.7196,133.77,133.64,0.33202757]
[1767623535259,104.7196,133.77,133.65,88.71202757]
[1767623535463,104.7196,133.77,133.66,0.33202757]
[1767623536059,6.7329,133.75,133.66,0.33202757]
[1767623536264,0.05091101,133.73,133.7,0.04794323]
[1767623537164,0.05091101,133.73,133.67,74.8853]
[1767623537370,0.05091101,133.73,133.6,88.38]
[1767623537371,6.7354,133.7,133.6,88.38]
[1767623537580,104.763,133.71,133.6,88.38]
[1767623537762,6.7353,133.7,133.61,0.33202757]
[1767623538373,104.7324,133.75,133.64,0.33202757]
[1767623538569,104.7384,133.74,133.64,0.33202757]
[1767623539076,6.7343,133.72,133.64,0.33202757]
[1767623539276,104.7176,133.77,133.64,0.33202757]
[1767623539480,104.7176,133.77,133.65,0.33202757]
[1767623539876,104.7176,133.77,133.62,193.2078]
[1767623539877,104.7416,133.74,133.62,88.71202757]
[1767623540268,109.39330001,133.8,133.63,0.33202757]
[1767623540468,109.39330001,133.8,133.65,0.33202757]
[1767623540469,104.704,133.79,133.65,0.33202757]
[1767623540778,104.704,133.79,133.7,0.33202757]
[1767623540779,6.7309,133.79,133.7,0.33202757]
[1767623540975,193.0245,133.84,133.71,88.71202757]
[1767623541164,104.6682,133.83,133.72,0.33202757]
[1767623541769,104.6857,133.81,133.71,88.38]
[1767623541972,104.7006,133.79,133.69,88.38]
[1767623542677,104.6857,133.81,133.7,0.33202757]
[1767623543463,313.8776,133.89,133.75,0.33202757]
[1767623543464,104.6256,133.89,133.75,0.33202757]
[1767623543670,104.6406,133.87,133.76,88.71202757]
[1767623543973,6.7288,133.83,133.76,0.33202757]
[1767623544170,104.6009,133.92,133.77,0.33202757]
[1767623544477,4.69750001,133.95,133.82,0.33202757]
[1767623544780,104.5711,133.96,133.84,0.33202757]
[1767623544781,104.5679,133.96,133.84,0.33202757]
[1767623544963,104.5937,133.93,133.83,88.38]
[1767623545169,104.5761,133.95,133.84,0.33202757]
[1767623545365,104.5749,133.95,133.84,0.33202757]
[1767623545569,104.6005,133.92,133.83,88.38]
[1767623545767,104.6056,133.91,133.82,88.38]
[1767623545970,6.7261,133.89,133.82,88.38]
[1767623546182,104.621,133.89,133.79,88.36]
[1767623546681,6.7265,133.88,133.77,0.33202757]
[1767623546879,104.637,133.87,133.78,88.36]
[1767623547177,104.6447,133.86,133.78,88.36]
[1767623547377,6.7285,133.84,133.75,88.36]
[1767623547872,104.6547,133.85,133.75,88.36]
[1767623548279,6.729,133.83,133.75,88.36]
[1767623548477,104.6696,133.83,133.75,88.36]
[1767623548894,104.6696,133.83,133.64,426.18943632]
[1767623548895,104.7081,133.78,133.66,4.69750001]
[1767623549178,193.0195,133.79,133.67,0.33202757]
[1767623549380,88.32,133.79,133.67,0.33202757]
[1767623549572,193.0036,133.81,133.67,0.33202757]
[1767623549980,104.6922,133.8,133.68,0.33202757]
[1767623550181,104.6992,133.79,133.68,88.67202757]
[1767623550373,104.6922,133.8,133.68,88.67202757]
[1767623550374,104.6922,133.8,133.69,0.33202757]
[1767623550581,6.7308,133.79,133.69,0.33202757]
[1767623550883,104.6759,133.82,133.69,0.33202757]
[1767623551070,104.6871,133.81,133.69,7.06732757]
[1767623551471,192.9959,133.82,133.7,0.32462144]
[1767623551675,6.7304,133.8,133.7,0.32462144]
[1767623552084,104.6994,133.79,133.7,0.32462144]
[1767623552289,6.7319,133.77,133.68,88.34]
[1767623552482,104.7155,133.77,133.68,88.34]
[1767623552681,104.7231,133.76,133.68,88.34]
[1767623553185,104.7324,133.75,133.66,0.32462144]
[1767623553382,6.7334,133.74,133.66,0.32462144]
[1767623553984,104.7155,133.77,133.66,0.32462144]
[1767623554178,104.7309,133.75,133.64,88.34]
[1767623554378,104.7309,133.75,133.64,88.66462144]
[1767623555284,193.0355,133.77,133.65,0.32462144]
[1767623555580,104.7111,133.78,133.65,0.32462144]
[1767623555777,6.7318,133.77,133.67,0.32462144]
[1767623555991,6.7318,133.77,133.67,88.68462144]
[1767623556282,209.346,133.83,133.68,0.32462144]
[1767623556486,192.9834,133.84,133.7,0.32462144]
[1767623557077,192.9834,133.84,133.71,88.68462144]
[1767623557274,109.35470001,133.85,133.72,0.32462144]
[1767623557587,104.64,133.87,133.72,0.32462144]
[1767623557788,88.34,133.86,133.72,0.32462144]
[1767623558188,104.64,133.87,133.75,0.32462144]
[1767623558386,4.69750001,133.88,133.75,88.68462144]
[1767623558587,4.69750001,133.88,133.76,0.32462144]
[1767623558782,88.32,133.87,133.76,0.32462144]
[1767623558982,104.6455,133.86,133.76,0.32462144]
[1767623559183,192.96,133.87,133.76,0.32462144]
[1767623559691,104.6449,133.86,133.75,88.36]
[1767623559885,104.6697,133.83,133.72,0.32462144]
[1767623560190,192.9897,133.83,133.73,88.36]
[1767623560392,192.9897,133.83,133.72,0.32462144]
[1767623560885,6.7298,133.81,133.7,0.32462144]
[1767623561085,109.34990001,133.85,133.71,0.32462144]
[1767623561394,95.0483,133.84,133.73,0.32462144]
[1767623561790,88.32,133.84,133.73,0.32462144]
[1767623561993,6.7288,133.83,133.73,0.32462144]
[1767623562201,104.6257,133.89,133.76,0.32462144]
[1767623562202,4.69750001,133.89,133.76,0.32462144]
[1767623562683,6.7273,133.86,133.76,0.32462144]
[1767623562884,88.32,133.85,133.76,0.32462144]
[1767623563086,104.6452,133.86,133.76,0.32462144]
[1767623563389,192.976,133.85,133.74,88.34]
[1767623563587,104.6681,133.83,133.72,0.32462144]
[1767623563806,6.7303,133.8,133.73,88.34]
[1767623564204,6.7303,133.8,133.72,0.32462144]
[1767623564511,6.7303,133.8,133.69,88.34]
[1767623564512,0.04718215,133.78,133.69,88.34]
[1767623564707,104.7149,133.77,133.65,0.32462144]
[1767623564900,193.0349,133.77,133.65,88.66462144]
[1767623565304,6.7333,133.74,133.65,88.66462144]
[1767623565703,104.7082,133.78,133.66,0.32462144]
[1767623565907,193.0282,133.78,133.66,0.32462144]
[1767623566103,6.7322,133.76,133.66,7.06162144]
[1767623566415,104.7305,133.75,133.65,88.34]
[1767623566615,104.7396,133.74,133.65,88.34]
[1767623567411,6.7344,133.72,133.65,88.34]
[1767623567713,88.32,133.74,133.65,88.34]
[1767623567912,6.7338,133.73,133.65,88.34]
[1767623568508,6.7329,133.75,133.65,88.66462144]
[1767623569310,104.7331,133.75,133.65,88.34]
[1767623569617,104.739,133.74,133.65,88.34]
[1767623569810,104.7472,133.73,133.65,88.34]
[1767623570207,109.42070001,133.76,133.65,88.34]
[1767623570408,197.74070001,133.76,133.65,88.66462144]
[1767623570917,6.7333,133.74,133.65,88.66462144]
[1767623571316,88.34,133.76,133.66,0.32462144]
[1767623571912,88.34,133.76,133.66,7.06162144]
[1767623572310,104.7003,133.79,133.67,0.32462144]
[1767623572507,6.7314,133.78,133.69,0.32462144]
[1767623572715,4.69750001,133.81,133.7,0.32462144]
[1767623572923,104.6726,133.83,133.7,0.32462144]
[1767623573114,6.7304,133.8,133.71,0.32462144]
[1767623573615,6.7295,133.82,133.71,7.05902144]
[1767623573819,104.6448,133.86,133.73,0.32462144]
[1767623574121,104.6448,133.86,133.72,4.69750001]
[1767623574122,104.6448,133.86,133.74,88.68462144]
[1767623574312,104.6712,133.83,133.74,88.36]
[1767623574621,104.6528,133.85,133.75,0.32462144]
[1767623575011,192.9928,133.85,133.75,0.32462144]
[1767623575323,6.7284,133.84,133.75,0.32462144]
[1767623575620,192.9928,133.85,133.75,0.32462144]
[1767623576412,6.7295,133.82,133.75,0.32462144]
[1767623576611,6.7295,133.82,133.74,88.36]
[1767623576612,104.6608,133.84,133.74,88.36]
[1767623576813,104.6688,133.83,133.72,88.69828362]
[1767623577121,192.9808,133.84,133.73,0.33828362]
[1767623577317,104.6288,133.88,133.77,0.33828362]
[1767623577526,104.6288,133.88,133.78,88.36]
[1767623578216,104.6522,133.85,133.73,0.33828362]
[1767623578523,104.6522,133.85,133.74,88.69828362]
[1767623578709,192.9722,133.85,133.74,88.69828362]
[1767623579211,104.6522,133.85,133.74,88.69828362]
[1767623579410,192.9572,133.87,133.75,0.33828362]
[1767623579623,104.616,133.9,133.76,0.33828362]
[1767623579821,6.7267,133.87,133.77,0.33828362]
[1767623580417,104.6024,133.92,133.81,0.33828362]
[1767623580622,104.5695,133.96,133.82,0.33828362]
[1767623580824,192.9145,133.93,133.82,0.33828362]
[1767623581119,6.7253,133.9,133.82,0.33828362]
[1767623581314,104.5945,133.93,133.82,0.33828362]
[1767623581515,104.5695,133.96,133.83,0.3252606]
[1767623581721,104.5695,133.96,133.81,193.0196]
[1767623581722,104.5746,133.95,133.86,0.3252606]
[1767623581917,35.53451411,133.97,133.86,0.3252606]
[1767623582110,140.09591411,133.97,133.86,0.3252606]
[1767623582310,104.5835,133.94,133.82,0.3252606]
[1767623582515,104.5835,133.94,133.83,88.34]
[1767623582516,104.5905,133.93,133.83,88.34]
[1767623582817,104.6054,133.91,133.83,88.34]
[1767623583017,104.6229,133.89,133.79,0.3252606]
[1767623583518,192.9014,133.92,133.8,0.3252606]
[1767623583720,104.6233,133.89,133.8,0.3252606]
[1767623584219,6.7273,133.86,133.77,95.0714]
[1767623584419,104.6311,133.88,133.77,95.0714]
[1767623584420,104.6395,133.87,133.77,88.34]
[1767623584817,6.7279,133.85,133.77,88.6652606]
[1767623585017,192.9138,133.9,133.78,0.3252606]
[1767623585625,88.3,133.9,133.79,0.3252606]
[1767623585820,192.9165,133.9,133.79,0.3252606]
[1767623586213,88.3,133.9,133.79,0.3252606]
[1767623586418,88.3,133.9,133.79,7.0556606]
[1767623586722,88.28,133.91,133.8,0.3252606]
[1767623587118,104.6155,133.9,133.8,0.3252606]
[1767623587519,192.8909,133.91,133.8,0.3252606]
[1767623587520,88.28,133.91,133.8,0.3252606]
[1767623587923,104.6155,133.9,133.8,0.3252606]
[1767623588325,104.6155,133.9,133.8,7.0551606]
[1767623588326,6.7254,133.9,133.8,7.0551606]
[1767623588523,104.5856,133.94,133.81,0.3252606]
[1767623588724,88.28,133.94,133.82,0.3252606]
[1767623588925,104.5779,133.95,133.82,0.3252606]
[1767623589228,88.28,133.94,133.82,0.3252606]
[1767623589526,42.25641411,133.97,133.87,0.3252606]
[1767623589821,88.28,133.99,133.88,0.3252606]
[1767623590030,6.7199,134.01,133.9,0.3252606]
[1767623590526,6.7202,134.0,133.9,88.6252606]
[1767623590727,104.5079,134.04,133.91,0.3252606]
[1767623590928,6.7188,134.03,133.93,6.7233]
[1767623591320,6.7188,134.03,133.92,0.3252606]
[1767623591627,6.7194,134.02,133.92,88.6252606]
[1767623591827,88.28,134.03,133.92,88.6252606]
[1767623592016,88.28,134.03,133.92,88.3]
[1767623592224,192.7957,134.03,133.92,88.3]
[1767623592426,88.26,134.02,133.92,88.3]
[1767623592725,88.26,134.02,133.91,95.0244]
[1767623592924,88.26,134.02,133.91,88.3]
[1767623593123,88.26,134.02,133.92,6.7239]
[1767623593419,88.26,134.03,133.91,88.28]
[1767623593621,104.5275,134.01,133.9,0.3252606]
[1767623593818,192.7682,134.04,133.91,0.3252606]
[1767623594222,104.5226,134.02,133.91,0.3252606]
[1767623594418,104.5372,134.0,133.88,0.3252606]
[1767623594618,104.5372,134.0,133.89,88.28]
[1767623594820,104.5588,133.97,133.85,0.3252606]
[1767623595039,104.5828,133.94,133.82,88.6052606]
[1767623595331,104.5743,133.95,133.82,88.6052606]
[1767623595533,6.7247,133.91,133.82,0.3252606]
[1767623595722,192.8252,133.94,133.82,0.3252606]
[1767623595723,88.24,133.94,133.82,0.3252606]
[1767623596124,104.5588,133.97,133.82,0.3252606]
[1767623596325,88.24,133.94,133.82,0.3252606]
[1767623596526,6.7238,133.93,133.83,6.7284]
[1767623596726,6.7238,133.93,133.83,7.0536606]
[1767623597031,88.24,133.94,133.83,7.0536606]
[1767623597032,88.24,133.94,133.83,0.3252606]
[1767623597328,104.5588,133.97,133.85,6.7276]
[1767623597529,104.524,134.02,133.88,0.3252606]
[1767623597736,6.7199,134.01,133.9,0.3252606]
[1767623597933,112.11108868,134.05,133.9,0.3252606]
[1767623598332,8.01768315,134.04,133.93,6.7233]
[1767623598526,94.9584,134.04,133.92,0.3252606]
[1767623598725,88.24,134.07,133.94,0.3252606]
[1767623599025,88.24,134.07,133.94,88.5852606]
[1767623599220,192.7232,134.07,133.94,88.5852606]
[1767623599838,6.7173,134.06,133.95,6.7224]
[1767623600137,104.4832,134.07,133.95,6.7224]
[1767623600428,104.4832,134.07,133.94,88.5852606]
[1767623600429,6.7179,134.05,133.94,88.5852606]
[1767623600738,104.4832,134.07,133.94,88.5852606]
[1767623601031,104.4983,134.05,133.94,88.26]
[1767623601527,6.7192,134.02,133.94,88.26]
[1767623601733,104.5155,134.03,133.93,88.26]
[1767623601932,104.5207,134.02,133.93,88.26]
[1767623602332,192.7407,134.02,133.93,88.26]
[1767623603334,104.5045,134.04,133.93,88.26]
[1767623603528,88.22,134.04,133.94,0.3252606]
[1767623603730,104.4667,134.09,133.95,0.3252606]
[1767623604233,6.7164,134.08,133.98,0.3252606]
[1767623604440,104.473,134.08,133.98,88.5652606]
[1767623604832,104.4895,134.06,133.94,0.3252606]
[1767623605129,104.4895,134.06,133.96,88.24]
[1767623605329,105.7597013,134.1,133.97,0.3252606]
[1767623605529,192.6887,134.09,133.97,0.3252606]
[1767623606033,104.4821,134.07,133.96,88.24]
[1767623606233,104.4755,134.08,133.96,88.24]
[1767623606234,104.4755,134.08,133.97,0.3252606]
[1767623606836,6.7178,134.05,133.97,0.3252606]
[1767623607037,104.4911,134.06,133.96,88.24]
[1767623607237,104.4984,134.05,133.96,88.24]
[1767623607438,104.5125,134.03,133.94,0.3252606]
[1767623607642,192.7041,134.04,133.94,0.3252606]
[1767623607936,192.7041,134.04,133.92,88.22]
[1767623607937,6.7199,134.01,133.92,88.22]
[1767623608136,104.5272,134.01,133.92,88.22]
[1767623608335,104.5598,133.97,133.88,0.3252606]
[1767623608634,104.5511,133.98,133.87,88.22]
[1767623608837,94.9219,133.97,133.88,0.3252606]
[1767623609231,6.7222,133.96,133.88,0.3252606]
[1767623609426,88.2,133.97,133.88,0.3252606]
[1767623609633,88.2,134.01,133.88,0.3252606]
[1767623609832,192.7299,134.01,133.88,0.3252606]
[1767623610043,104.5479,133.99,133.88,0.3252606]
[1767623610233,104.5371,134.0,133.88,0.3252606]
[1767623610428,88.2,133.99,133.88,0.3252606]
[1767623610640,6.7213,133.98,133.88,7.0511606]
[1767623610834,104.551,133.98,133.87,88.22]
[1767623611935,192.7462,133.99,133.87,88.54215113]
[1767623612144,104.5299,134.01,133.88,0.32215113]
[1767623612342,88.2,134.01,133.88,0.32215113]
[1767623612532,192.7336,134.01,133.89,0.32215113]
[1767623612735,104.535,134.0,133.89,0.32215113]
[1767623613036,104.5429,133.99,133.89,0.32215113]
[1767623613535,104.5666,133.96,133.86,0.32215113]
[1767623613742,88.2,133.98,133.86,0.32215113]
[1767623613937,6.7224,133.96,133.87,0.32215113]
[1767623614344,192.7238,134.02,133.88,0.32215113]
[1767623614743,104.5238,134.02,133.88,0.32215113]
[1767623614944,192.7238,134.02,133.88,0.32215113]
[1767623615137,104.536,134.0,133.9,0.32215113]
[1767623615333,104.5303,134.01,133.84,104.657]
[1767623615334,104.5621,133.97,133.84,0.32215113]
[1767623615539,104.5621,133.97,133.85,88.54215113]
[1767623615740,6.7232,133.94,133.85,95.26955113]
[1767623616535,6.7238,133.93,133.85,88.54215113]
[1767623617340,94.9225,133.96,133.85,88.54215113]
[1767623617540,104.5437,133.99,133.86,0.32215113]
[1767623617843,88.2,133.98,133.86,0.32215113]
[1767623618044,104.5589,133.97,133.86,0.32215113]
[1767623618345,104.5664,133.96,133.86,0.32215113]
[1767623618539,88.2,133.95,133.85,88.22]
[1767623618735,6.7233,133.94,133.85,88.22]
[1767623618938,104.5937,133.93,133.82,0.32215113]
[1767623619139,104.5975,133.92,133.79,0.32215113]
[1767623619336,6.7249,133.91,133.79,7.05255113]
[1767623619536,104.5975,133.92,133.79,7.05255113]
[1767623619741,88.2,133.9,133.79,7.05255113]
[1767623619950,6.7263,133.88,133.79,0.32215113]
[1767623620343,104.6243,133.89,133.78,88.24]
[1767623620647,104.6397,133.87,133.76,0.32215113]
[1767623621044,0.05117473,133.85,133.76,0.32215113]
[1767623621351,0.05117473,133.85,133.76,7.05385113]
[1767623621647,6.7263,133.88,133.76,7.05385113]
[1767623621847,88.22,133.87,133.76,7.05385113]
[1767623622241,0.05077777,133.83,133.76,7.05385113]
[1767623622753,0.05077777,133.83,133.77,0.32215113]
[1767623622947,88.22,133.87,133.78,0.05295201]
[1767623623458,6.7283,133.84,133.74,88.24]
[1767623623753,104.6561,133.85,133.74,88.24]
[1767623624255,6.7289,133.83,133.74,88.24]
[1767623624749,94.9689,133.83,133.74,88.24]
[1767623625647,88.24,133.84,133.74,88.56215113]
[1767623626152,104.6768,133.82,133.7,0.32215113]
[1767623626545,104.6916,133.8,133.7,0.32215113]
[1767623626848,6.7313,133.78,133.7,0.32215113]
[1767623628454,6.7313,133.78,133.69,88.28]
[1767623628948,94.9903,133.8,133.7,0.32215113]
[1767623631349,6.7293,133.82,133.71,0.32215113]
[1767623631660,104.647,133.86,133.74,0.32215113]
[1767623632048,104.647,133.86,133.71,104.7582]
[1767623632049,104.6615,133.84,133.71,0.32215113]
[1767623632653,6.7298,133.81,133.71,7.05665113]
[1767623633060,6.7298,133.81,133.72,0.3373562]
[1767623633554,6.7289,133.83,133.72,0.3373562]
[1767623633754,192.9473,133.84,133.72,0.3373562]
[1767623633953,192.9473,133.84,133.72,7.0712562]
[1767623634350,104.647,133.86,133.73,0.3373562]
[1767623634554,104.6696,133.83,133.72,6.7339]
[1767623634862,104.6643,133.84,133.7,0.3373562]
[1767623634863,88.28,133.82,133.7,0.3373562]
[1767623635059,6.7284,133.84,133.73,0.3373562]
[1767623635263,6.7284,133.84,133.74,0.3373562]
[1767623635452,88.28,133.85,133.74,0.3373562]
[1767623635650,6.7275,133.86,133.75,7.0698562]
[1767623635855,104.618,133.9,133.75,7.0698562]
[1767623635856,109.30406748,133.9,133.76,0.3373562]
[1767623636156,192.9212,133.89,133.76,0.3373562]
[1767623636357,104.634,133.88,133.76,0.3373562]
[1767623636564,109.32636748,133.87,133.73,88.6573562]
[1767623636769,104.6252,133.89,133.76,0.3373562]
[1767623637064,95.0264,133.88,133.76,7.0693562]
[1767623637260,88.3,133.88,133.76,7.0693562]
[1767623637555,6.7272,133.86,133.76,0.3373562]
[1767623637760,88.3,133.88,133.76,0.3373562]
[1767623637761,197.61906748,133.88,133.76,0.3373562]
[1767623638551,6.7277,133.85,133.76,0.3373562]
[1767623638956,104.6398,133.87,133.74,0.3373562]
[1767623639152,6.7275,133.86,133.75,6.7325]
[1767623639354,104.6398,133.87,133.75,6.7325]
[1767623640666,6.7277,133.85,133.75,6.7325]
[1767623641665,104.5977,133.92,133.78,0.3429296]
[1767623641962,104.6239,133.89,133.78,0.3429296]
[1767623642263,104.5906,133.93,133.79,0.3429296]
[1767623642462,192.8906,133.93,133.79,0.3429296]
[1767623642660,6.7245,133.92,133.81,0.3429296]
[1767623642863,104.5757,133.95,133.83,0.3429296]
[1767623643062,104.5664,133.96,133.83,0.3429296]
[1767623643267,34.97279646,133.97,133.84,104.9993296]
[1767623643471,34.97279646,133.97,133.86,0.3429296]
[1767623644059,41.69449646,133.97,133.87,7.0694296]
[1767623644265,129.97449646,133.97,133.87,7.0694296]
[1767623644451,123.25279646,133.97,133.87,7.0694296]
[1767623644651,34.97279646,133.97,133.88,0.3429296]
[1767623645270,4.68606748,134.05,133.9,0.3429296]
[1767623645459,4.68606748,134.05,133.91,0.3429296]
[1767623645460,104.5126,134.03,133.91,0.3429296]
[1767623645765,192.8003,134.02,133.91,0.3429296]
[1767623646165,104.5376,134.0,133.9,88.32]
[1767623646470,104.5376,134.0,133.88,0.3429296]
[1767623646667,104.554,133.98,133.86,88.3]
[1767623646868,192.8258,133.99,133.85,0.3429296]
[1767623646869,104.5664,133.96,133.85,0.3429296]
[1767623647168,192.8264,133.96,133.85,0.3429296]
[1767623647465,6.721,133.99,133.89,0.3429296]
[1767623648761,104.5765,133.95,133.85,0.3429296]
[1767623648959,88.26,133.94,133.83,88.3]
[1767623649667,104.5913,133.93,133.83,88.3]
[1767623649868,192.8513,133.93,133.83,88.3]
[1767623650371,94.9839,133.93,133.83,88.3]
[1767623650668,88.26,133.94,133.84,0.3429296]
[1767623651265,4.68606748,133.95,133.84,0.3429296]
[1767623651266,109.26386748,133.95,133.84,0.3429296]
[1767623651459,88.26,133.94,133.84,0.3429296]
[1767623651861,6.7243,133.92,133.84,0.3429296]
[1767623652061,6.7243,133.92,133.81,0.3429296]
[1767623652265,88.26,133.92,133.81,0.3429296]
[1767623652669,6.7252,133.9,133.81,0.3429296]
[1767623652972,104.5778,133.95,133.81,0.3429296]
[1767623653169,88.24,133.94,133.81,0.3429296]
[1767623653465,431.6361,133.99,133.81,0.3429296]
[1767623653466,4.68606748,133.97,133.83,0.3429296]
[1767623653655,104.5219,134.02,133.83,0.3429296]